bitfinex-derivatives/quotes_SOLF0:USTF0_20250131
["timestamp","ask_amount","ask_price","bid_price","bid_amount"]
[1738294005622,0.03129537,235.96,235.92,0.02986774]
[1738294007220,0.03129537,235.96,235.93,7.43249751]
[1738294007421,2.7,235.99,235.93,7.43249751]
[1738294008626,0.03135272,235.98,235.93,7.43249751]
[1738294009123,0.03135272,235.98,235.92,4.26826774]
[1738294012121,7.43249751,235.93,235.92,0.02986774]
[1738294012329,7.43249751,235.93,235.81,7.43249751]
[1738294012520,7.43249751,235.88,235.79,7.43249751]
[1738294013530,0.02899643,235.86,235.81,0.02849752]
[1738294014731,7.46149394,235.86,235.81,0.02849752]
[1738294014928,7.43249751,235.84,235.81,0.02849752]
[1738294015329,7.46149394,235.86,235.81,0.02849752]
[1738294016630,0.02899643,235.86,235.81,7.46099503]
[1738294016830,10.13249751,235.9,235.83,11.67249751]
[1738294018134,0.02980763,235.89,235.83,11.67249751]
[1738294020840,0.02980763,235.89,235.85,4.2397]
[1738294021140,0.02980763,235.89,235.81,0.02849752]
[1738294021141,7.43249751,235.87,235.81,0.02849752]
[1738294021337,7.43249751,235.85,235.81,0.02849752]
[1738294024544,7.43249751,235.87,235.81,0.02849752]
[1738294025544,0.02980763,235.89,235.85,7.43249751]
[1738294025734,7.43249751,235.95,235.88,7.43249751]
[1738294026841,0.03020215,235.94,235.89,0.03260064]
[1738294029946,7.43249751,235.9,235.89,0.03260064]
[1738294033550,10.16269966,235.94,235.89,0.03260064]
[1738294034948,7.46269966,235.94,235.89,0.03260064]
[1738294035144,0.03020215,235.94,235.89,0.03260064]
[1738294036651,7.46269966,235.94,235.89,0.03260064]
[1738294039751,7.43249751,235.92,235.89,0.03260064]
[1738294040053,7.43249751,235.9,235.89,0.03260064]
[1738294041449,7.43249751,235.92,235.89,0.03260064]
[1738294043863,10.16269966,235.94,235.89,0.03260064]
[1738294044459,7.43249751,235.9,235.89,0.03260064]
[1738294047861,11.67129751,235.9,235.89,0.03260064]
[1738294049259,7.43249751,235.9,235.89,0.03260064]
[1738294049462,11.67099751,235.92,235.89,0.03260064]
[1738294050161,7.43249751,235.92,235.89,0.03260064]
[1738294055069,7.43249751,235.9,235.89,0.03260064]
[1738294055267,7.43249751,235.9,235.77,7.43249751]
[1738294055469,7.43249751,235.86,235.77,7.43249751]
[1738294056469,4.2401,235.83,235.79,0.02992953]
[1738294057064,7.43249751,235.82,235.79,0.02992953]
[1738294057267,4.2406,235.81,235.79,0.02992953]
[1738294058567,7.43249751,235.8,235.79,0.02992953]
[1738294059168,10.13249751,235.82,235.79,0.02992953]
[1738294060564,2.7,235.82,235.79,7.46242704]
[1738294061672,2.7,235.82,235.79,0.02992953]
[1738294065768,10.13249751,235.82,235.79,0.02992953]
[1738294066175,7.43249751,235.8,235.79,0.02992953]
[1738294067078,11.67309751,235.8,235.79,0.02992953]
[1738294067774,7.43249751,235.8,235.79,0.02992953]
[1738294068674,11.67309751,235.8,235.79,0.02992953]
[1738294069271,11.67309751,235.8,235.68,4.1742]
[1738294069272,7.43249751,235.8,235.69,7.43249751]
[1738294069574,7.43249751,235.78,235.69,7.43249751]
[1738294069969,2.7,235.82,235.68,1.4202]
[1738294069970,7.43249751,235.8,235.71,7.43249751]
[1738294070172,7.43249751,235.8,235.73,7.43249751]
[1738294070375,0.02922931,235.78,235.73,7.46047794]
[1738294070972,0.02922931,235.78,235.73,0.02798043]
[1738294071466,7.46172682,235.78,235.73,0.02798043]
[1738294074578,7.43249751,235.76,235.73,0.02798043]
[1738294075480,7.46172682,235.78,235.73,0.02798043]
[1738294079880,7.43249751,235.76,235.73,0.02798043]
[1738294080278,7.46172682,235.78,235.73,0.02798043]
[1738294083082,7.43249751,235.76,235.73,0.02798043]
[1738294087888,11.67419751,235.74,235.73,0.02798043]
[1738294088080,7.43249751,235.74,235.73,0.02798043]
[1738294088390,7.43249751,235.76,235.73,0.02798043]
[1738294091785,7.46172682,235.78,235.73,0.02798043]
[1738294095489,7.43249751,235.76,235.73,0.02798043]
[1738294096791,12.72,235.73,235.53,147.07133708]
[1738294096997,2.74,235.79,235.53,147.07133708]
[1738294096998,7.43249751,235.62,235.53,147.07133708]
[1738294097301,7.43249751,235.62,235.54,2.7474]
[1738294097494,7.43249751,235.62,235.54,4.183]
[1738294097695,7.43249751,235.59,235.54,4.183]
[1738294097898,0.02745531,235.6,235.56,0.02742406]
[1738294098192,0.02745531,235.6,235.54,4.183]
[1738294098193,7.43249751,235.61,235.54,4.183]
[1738294098395,0.03090785,235.6,235.56,0.02946077]
[1738294098599,7.43249751,235.59,235.56,0.02946077]
[1738294099795,7.43249751,235.57,235.56,0.02946077]
[1738294102196,0.03090785,235.6,235.56,0.02946077]
[1738294102694,0.03090785,235.6,235.52,7.43249751]
[1738294103896,0.03090785,235.6,235.54,0.03127387]
[1738294106504,7.43249751,235.57,235.54,0.03127387]
[1738294107304,7.43249751,235.55,235.54,0.03127387]
[1738294110601,7.43249751,235.57,235.54,0.03127387]
[1738294110904,10.41249751,235.57,235.54,0.03127387]
[1738294111407,7.43249751,235.55,235.54,0.03127387]
[1738294114196,7.43249751,235.55,235.4,7.43249751]
[1738294114397,7.43249751,235.47,235.4,7.43249751]
[1738294115410,0.02849803,235.46,235.41,0.02947551]
[1738294117001,0.02849803,235.46,235.42,7.43249751]
[1738294117204,0.02849803,235.46,235.44,7.43249751]
[1738294117405,7.43249751,235.51,235.44,7.43249751]
[1738294117604,10.43249751,235.51,235.44,7.43249751]
[1738294118304,7.43249751,235.53,235.46,7.43249751]
[1738294118504,0.02852977,235.5,235.46,7.43249751]
[1738294118705,0.02852977,235.5,235.47,0.03083084]
[1738294119409,0.02852977,235.5,235.48,7.43249751]
[1738294119710,2.98,235.55,235.48,7.43249751]
[1738294120206,2.98,235.55,235.48,11.67879751]
[1738294120408,11.67729751,235.57,235.48,11.67879751]
[1738294120708,2.98,235.59,235.47,0.03083084]
[1738294120709,7.43249751,235.51,235.47,0.03083084]
[1738294123506,7.43249751,235.49,235.47,0.03083084]
[1738294124106,11.67879751,235.49,235.47,0.03083084]
[1738294125007,4.2464,235.48,235.47,0.03083084]
[1738294125504,4.2464,235.48,235.41,7.43249751]
[1738294125907,4.2464,235.48,235.41,11.68009751]
[1738294126613,0.03183492,235.47,235.42,0.02679946]
[1738294127112,0.03183492,235.47,235.42,4.27419946]
[1738294130718,0.03183492,235.47,235.43,4.2472]
[1738294131417,0.03183492,235.47,235.42,0.02679946]
[1738294131715,0.03183492,235.47,235.44,4.2471]
[1738294131916,0.03183492,235.47,235.43,7.43249751]
[1738294133108,0.03183492,235.47,235.45,4.2469]
[1738294141930,0.03183492,235.47,235.46,4.2467]
[1738294142124,0.03183492,235.47,235.43,10.18519751]
[1738294142125,7.43249751,235.57,235.45,7.43249751]
[1738294142428,7.43249751,235.57,235.49,7.43249751]
[1738294143233,7.43249751,235.57,235.52,4.2455]
[1738294143424,0.02994368,235.55,235.52,4.2455]
[1738294144225,7.46244119,235.55,235.51,0.02788646]
[1738294146329,11.67799751,235.53,235.51,0.02788646]
[1738294146626,7.43249751,235.53,235.51,0.02788646]
[1738294147928,4.2457,235.52,235.51,0.02788646]
[1738294148831,7.43249751,235.53,235.51,0.02788646]
[1738294151834,0.02994368,235.55,235.51,0.02788646]
[1738294152928,7.46244119,235.55,235.51,0.02788646]
[1738294165449,7.43249751,235.53,235.51,0.02788646]
[1738294167146,7.46244119,235.55,235.51,0.02788646]
[1738294171955,0.02994368,235.55,235.51,0.02788646]
[1738294174263,0.02994368,235.55,235.53,4.2455]
[1738294174558,0.02994368,235.55,235.53,7.43249751]
[1738294174951,0.02994368,235.55,235.54,4.2453]
[1738294175360,7.43249751,235.63,235.53,7.43249751]
[1738294175660,7.43249751,235.63,235.55,7.43249751]
[1738294176259,7.43249751,235.63,235.56,4.2449]
[1738294176456,7.43249751,235.59,235.53,7.43249751]
[1738294176665,7.43249751,235.59,235.57,0.03080965]
[1738294179863,7.43249751,235.61,235.57,0.03080965]
[1738294180460,11.67649751,235.61,235.57,0.03080965]
[1738294181464,7.43249751,235.61,235.57,0.03080965]
[1738294186668,3.73742042,235.6,235.57,0.03080965]
[1738294186973,3.73742042,235.59,235.57,0.03080965]
[1738294187567,3.73742042,235.58,235.57,0.03080965]
[1738294195871,4.27395819,235.62,235.57,0.03080965]
[1738294196074,3.73814533,235.58,235.57,0.03080965]
[1738294196770,3.73814533,235.58,235.57,7.46330716]
[1738294197075,1.52934533,235.58,235.57,11.70810716]
[1738294200576,0.03005819,235.62,235.61,4.244]
[1738294200772,7.43249751,235.72,235.61,7.43249751]
[1738294201068,7.43249751,235.72,235.64,7.43249751]
[1738294201275,10.23249751,235.72,235.64,7.43249751]
[1738294201468,4.2428,235.68,235.64,7.43249751]
[1738294201875,4.26975508,235.68,235.64,7.46313954]
[1738294202973,7.43249751,235.66,235.64,0.03064203]
[1738294203572,4.2433,235.65,235.64,0.03064203]
[1738294204777,7.43249751,235.66,235.64,0.03064203]
[1738294205576,11.67569751,235.66,235.64,0.03064203]
[1738294205773,7.43249751,235.66,235.64,0.03064203]
[1738294206777,4.243,235.67,235.64,0.03064203]
[1738294207679,7.45945259,235.68,235.64,0.03064203]
[1738294210882,11.70225259,235.68,235.64,0.03064203]
[1738294211583,4.26975508,235.68,235.64,0.03064203]
[1738294211883,0.02695508,235.68,235.64,0.03064203]
[1738294213480,3.6890652,235.67,235.64,0.03064203]
[1738294214080,3.6890652,235.66,235.64,0.03064203]
[1738294214686,0.02695508,235.68,235.65,7.43249751]
[1738294214880,3.68915582,235.67,235.65,7.43249751]
[1738294215687,3.68915582,235.66,235.65,7.43249751]
[1738294216186,1.48095582,235.66,235.65,11.67579751]
[1738294216588,0.02695508,235.68,235.67,4.243]
[1738294216888,0.02695508,235.68,235.67,11.67549751]
[1738294217484,0.02695508,235.68,235.67,7.43249751]
[1738294219485,0.02695508,235.68,235.65,7.43249751]
[1738294219782,0.02695508,235.68,235.64,0.03064203]
[1738294219982,7.45945259,235.68,235.64,0.03064203]
[1738294220189,11.70235259,235.68,235.64,0.03064203]
[1738294220988,0.02695508,235.68,235.67,7.43249751]
[1738294221789,0.02695508,235.68,235.64,0.03064203]
[1738294224288,11.67549751,235.67,235.64,0.03064203]
[1738294224982,7.43249751,235.67,235.64,0.03064203]
[1738294229795,11.67549751,235.67,235.64,0.03064203]
[1738294229995,13.07739751,235.67,235.64,0.03064203]
[1738294232491,4.2431,235.66,235.59,7.43249751]
[1738294233598,4.2431,235.66,235.6,0.02914089]
[1738294234496,7.43249751,235.62,235.6,0.02914089]
[1738294234692,10.19249751,235.62,235.6,0.02914089]
[1738294235590,4.244,235.61,235.6,0.02914089]
[1738294236496,10.19249751,235.62,235.6,0.02914089]
[1738294237001,2.76,235.62,235.6,0.02914089]
[1738294240295,0.02798623,235.63,235.6,0.02914089]
[1738294254610,7.43249751,235.62,235.6,0.02914089]
[1738294256607,4.2444,235.61,235.6,0.02914089]
[1738294256813,7.43249751,235.62,235.49,7.43249751]
[1738294257010,7.43249751,235.57,235.49,7.43249751]
[1738294257812,0.02928473,235.55,235.51,0.03000936]
[1738294259008,7.46178224,235.55,235.51,0.03000936]
[1738294261511,4.2457,235.54,235.51,0.03000936]
[1738294261911,7.43249751,235.53,235.51,0.03000936]
[1738294262119,7.43249751,235.53,235.41,7.43249751]
[1738294262315,7.43249751,235.47,235.39,7.43249751]
[1738294263420,7.43249751,235.47,235.41,0.03066782]
[1738294263421,0.0317008,235.45,235.41,0.03066782]
[1738294263610,0.0317008,235.45,235.43,7.43249751]
[1738294266018,0.0317008,235.45,235.41,7.46316533]
[1738294267020,0.0317008,235.45,235.43,7.43249751]
[1738294270223,0.0317008,235.45,235.41,7.46316533]
[1738294272420,0.0317008,235.45,235.41,0.03066782]
[1738294273718,4.2791008,235.45,235.41,0.03066782]
[1738294274123,0.0317008,235.45,235.41,0.03066782]
[1738294274318,4.2475,235.44,235.41,0.03066782]
[1738294274622,0.0317008,235.45,235.41,0.03066782]
[1738294275324,4.2478,235.43,235.41,0.03066782]
[1738294276822,4.2475,235.44,235.41,0.03066782]
[1738294277017,0.0317008,235.45,235.41,0.03066782]
[1738294278521,7.46419831,235.45,235.41,0.03066782]
[1738294278923,4.2477,235.43,235.41,0.03066782]
[1738294279922,4.2479,235.42,235.41,0.03066782]
[1738294282326,7.43249751,235.43,235.41,0.03066782]
[1738294282625,0.0317008,235.45,235.41,7.46316533]
[1738294283826,0.0317008,235.45,235.41,11.71116533]
[1738294284423,0.0317008,235.45,235.41,7.46316533]
[1738294285425,0.0317008,235.45,235.41,11.71116533]
[1738294285727,0.0317008,235.45,235.41,7.46316533]
[1738294286128,0.0317008,235.45,235.42,4.2478]
[1738294289727,0.0317008,235.45,235.43,4.2477]
[1738294289923,0.0317008,235.45,235.41,7.46316533]
[1738294290129,0.0317008,235.45,235.43,7.43249751]
[1738294290331,0.0317008,235.45,235.44,4.2475]
[1738294290829,7.43249751,235.53,235.43,7.43249751]
[1738294291033,7.43249751,235.53,235.45,7.43249751]
[1738294291933,7.60912751,235.55,235.51,4.2462]
[1738294292129,0.17663,235.55,235.49,7.43249751]
[1738294292333,7.43249751,235.51,235.47,0.03240993]
[1738294292632,7.43249751,235.51,235.47,4.27940993]
[1738294292831,7.43249751,235.51,235.47,0.03240993]
[1738294294833,7.43249751,235.51,235.47,4.27930993]
[1738294296039,7.43249751,235.53,235.49,4.2466]
[1738294296531,7.43249751,235.53,235.47,0.03240993]
[1738294296737,7.43249751,235.53,235.47,4.27920993]
[1738294297733,7.43249751,235.53,235.48,4.2468]
[1738294305651,7.43249751,235.53,235.47,0.03240993]
[1738294307046,7.43249751,235.53,235.47,4.27940993]
[1738294308253,7.43249751,235.53,235.47,0.03240993]
[1738294309755,7.43249751,235.53,235.47,4.27930993]
[1738294312355,7.64041893,235.55,235.48,4.2468]
[1738294313559,11.88591893,235.55,235.47,4.27940993]
[1738294314055,7.64041893,235.55,235.47,0.03240993]
[1738294314256,7.64041893,235.55,235.48,4.2467]
[1738294320759,7.43249751,235.53,235.47,0.03240993]
[1738294321065,7.43249751,235.51,235.47,0.03240993]
[1738294322067,11.67879751,235.51,235.47,0.03240993]
[1738294322464,7.43249751,235.51,235.47,0.03240993]
[1738294322661,7.43249751,235.49,235.47,0.03240993]
[1738294323665,4.2468,235.48,235.47,0.03240993]
[1738294323965,7.43249751,235.49,235.47,0.03240993]
[1738294325159,0.17663,235.55,235.48,7.43249751]
[1738294325363,0.17663,235.55,235.53,7.43249751]
[1738294325766,0.17663,235.55,235.53,11.67829751]
[1738294330873,7.43249751,235.54,235.47,0.03240993]
[1738294331064,7.43249751,235.52,235.47,0.03240993]
[1738294331265,7.43249751,235.52,235.47,4.27930993]
[1738294332278,7.43249751,235.54,235.47,4.27930993]
[1738294332774,7.43249751,235.54,235.48,4.2468]
[1738294334777,7.43249751,235.54,235.49,4.2466]
[1738294336478,0.17663,235.55,235.53,4.2458]
[1738294337874,0.17663,235.55,235.51,7.43249751]
[1738294338176,0.17663,235.55,235.51,11.67859751]
[1738294338379,0.17663,235.55,235.51,7.43249751]
[1738294339078,0.17663,235.55,235.52,4.2461]
[1738294339478,0.17663,235.55,235.47,7.46490744]
[1738294339683,7.43249751,235.54,235.47,0.03240993]
[1738294339878,7.43249751,235.54,235.48,4.2468]
[1738294340577,7.43249751,235.54,235.47,0.03240993]
[1738294340877,7.43249751,235.52,235.47,0.03240993]
[1738294343777,7.43249751,235.54,235.47,0.03240993]
[1738294343982,7.43249751,235.54,235.49,4.2466]
[1738294345181,1.58073,235.55,235.5,4.2463]
[1738294345375,0.17663,235.55,235.49,7.43249751]
[1738294345581,0.17663,235.55,235.51,7.43249751]
[1738294346677,0.17663,235.55,235.52,4.2461]
[1738294346979,0.17663,235.55,235.51,7.43249751]
[1738294347281,0.17663,235.55,235.49,7.43249751]
[1738294348577,0.17663,235.55,235.47,0.03240993]
[1738294348578,7.43249751,235.5,235.47,0.03240993]
[1738294348780,4.2468,235.49,235.47,0.03240993]
[1738294349780,7.43249751,235.5,235.47,0.03240993]
[1738294350174,0.03126678,235.51,235.47,0.03240993]
[1738294352882,4.2474,235.45,235.36,7.43249751]
[1738294353080,7.43249751,235.45,235.36,7.43249751]
[1738294353880,4.2476,235.44,235.36,7.43249751]
[1738294354084,0.02949749,235.43,235.38,0.03198351]
[1738294354989,0.02949749,235.43,235.38,7.46448102]
[1738294356080,0.02949749,235.43,235.38,11.71308102]
[1738294358890,0.02949749,235.43,235.38,4.28058351]
[1738294360284,0.02949749,235.43,235.39,4.2484]
[1738294360489,0.02949749,235.43,235.38,7.46448102]
[1738294360688,0.02949749,235.43,235.4,7.43249751]
[1738294360884,0.02949749,235.43,235.42,11.68039751]
[1738294364089,0.02949749,235.43,235.38,0.03198351]
[1738294364090,0.02949749,235.43,235.41,4.248]
[1738294365690,0.02949749,235.43,235.4,7.43249751]
[1738294365992,0.02949749,235.43,235.42,4.2479]
[1738294366291,0.02949749,235.43,235.42,11.68039751]
[1738294368088,0.02949749,235.43,235.39,4.2236]
[1738294368089,7.43249751,235.57,235.49,7.43249751]
[1738294368687,7.43249751,235.57,235.53,4.2459]
[1738294368887,7.43249751,235.63,235.55,7.43249751]
[1738294369097,0.02753208,235.57,235.55,7.43249751]
[1738294369594,0.02753208,235.57,235.55,11.67789751]
[1738294369988,0.02753208,235.57,235.53,7.46313728]
[1738294370194,0.02753208,235.57,235.53,4.27633977]
[1738294370887,0.02753208,235.57,235.54,4.2457]
[1738294371891,0.02753208,235.57,235.53,7.46313728]
[1738294372086,0.02753208,235.57,235.55,4.2455]
[1738294374194,0.02753208,235.57,235.53,7.46313728]
[1738294374394,0.02753208,235.57,235.53,0.03063977]
[1738294374793,7.46002959,235.57,235.53,0.03063977]
[1738294374994,7.43249751,235.55,235.53,0.03063977]
[1738294376195,11.67809751,235.55,235.53,0.03063977]
[1738294376897,7.43249751,235.55,235.53,0.03063977]
[1738294380999,7.43249751,235.55,235.39,4.2236]
[1738294381196,7.43249751,235.5,235.41,7.43249751]
[1738294381498,7.43249751,235.48,235.41,7.43249751]
[1738294381701,7.43249751,235.48,235.43,4.2477]
[1738294382096,7.43249751,235.5,235.43,4.2477]
[1738294382390,0.030907,235.48,235.43,4.27704285]
[1738294383904,0.030907,235.48,235.43,0.02934285]
[1738294384105,7.46340451,235.48,235.43,0.02934285]
[1738294384707,4.247,235.47,235.43,0.02934285]
[1738294384909,7.43249751,235.46,235.43,0.02934285]
[1738294386005,11.67999751,235.44,235.43,0.02934285]
[1738294388311,4.2482,235.41,235.35,7.43249751]
[1738294388806,4.2483,235.4,235.35,7.43249751]
[1738294389305,4.2483,235.4,235.35,7.45993714]
[1738294389512,4.27957077,235.4,235.35,7.45993714]
[1738294391312,4.27957077,235.4,235.35,0.02743963]
[1738294392413,11.71206828,235.4,235.35,0.02743963]
[1738294393716,4.2484,235.39,235.35,0.02743963]
[1738294394010,7.43249751,235.37,235.35,0.02743963]
[1738294395217,4.249,235.36,235.35,0.02743963]
[1738294396719,7.43249751,235.37,235.35,0.02743963]
[1738294397817,11.68129751,235.37,235.35,0.02743963]
[1738294398118,7.43249751,235.37,235.35,0.02743963]
[1738294398320,4.249,235.36,235.35,0.02743963]
[1738294399422,4.249,235.36,235.28,4.2504]
[1738294399615,7.43249751,235.34,235.28,4.2504]
[1738294400317,7.43249751,235.34,235.29,0.02943064]
[1738294400521,7.43249751,235.32,235.29,0.02943064]
[1738294400718,7.43249751,235.3,235.29,0.02943064]
[1738294401821,7.43249751,235.32,235.29,0.02943064]
[1738294402220,11.68229751,235.32,235.29,0.02943064]
[1738294402624,7.43249751,235.32,235.29,0.02943064]
[1738294402924,4.2499,235.31,235.29,0.02943064]
[1738294403625,7.43249751,235.3,235.29,0.02943064]
[1738294405029,7.43249751,235.32,235.29,0.02943064]
[1738294406129,4.2499,235.31,235.29,0.02943064]
[1738294406628,7.43249751,235.3,235.29,0.02943064]
[1738294411740,4.2504,235.28,235.19,4.252]
[1738294411928,7.43249751,235.24,235.18,2.7383]
[1738294412634,7.43249751,235.26,235.18,10.17079751]
[1738294413026,0.03121968,235.24,235.21,4.2517]
[1738294413430,0.03121968,235.24,235.2,7.46071193]
[1738294413931,0.03121968,235.24,235.2,11.71251193]
[1738294414129,0.03121968,235.24,235.22,7.43249751]
[1738294415332,0.03121968,235.24,235.2,11.71251193]
[1738294415730,0.03121968,235.24,235.2,7.46071193]
[1738294416431,0.03121968,235.24,235.2,11.71251193]
[1738294417133,0.03121968,235.24,235.2,7.46071193]
[1738294418134,0.03121968,235.24,235.21,4.2516]
[1738294421030,0.03121968,235.24,235.22,11.68389751]
[1738294421231,0.03121968,235.24,235.22,7.43249751]
[1738294421736,0.03121968,235.24,235.2,7.46071193]
[1738294422134,0.03121968,235.24,235.23,4.2513]
[1738294434342,0.03121968,235.24,235.22,4.2515]
[1738294435448,0.03121968,235.24,235.23,4.2513]
[1738294437546,0.03121968,235.24,235.21,4.2515]
[1738294439646,11.71501719,235.24,235.2,0.02821442]
[1738294440050,7.43249751,235.22,235.2,0.02821442]
[1738294440549,7.46371719,235.24,235.2,0.02821442]
[1738294440750,0.03121968,235.24,235.2,0.02821442]
[1738294441253,7.46371719,235.24,235.2,0.02821442]
[1738294442548,7.43249751,235.22,235.2,0.02821442]
[1738294442944,7.46371719,235.24,235.2,0.02821442]
[1738294444848,7.46371719,235.24,235.22,4.2515]
[1738294445252,7.46371719,235.24,235.2,0.02821442]
[1738294445453,0.03121968,235.24,235.2,0.02821442]
[1738294445854,0.03121968,235.24,235.23,4.2513]
[1738294450256,0.03121968,235.24,235.21,4.2516]
[1738294450760,7.43249751,235.23,235.2,0.02821442]
[1738294450954,7.43249751,235.21,235.2,0.02821442]
[1738294455269,11.68419751,235.21,235.2,0.02821442]
[1738294455461,7.43249751,235.21,235.12,7.43249751]
[1738294455661,7.43249751,235.19,235.12,7.43249751]
[1738294455860,7.43249751,235.21,235.14,7.43249751]
[1738294456067,7.43249751,235.23,235.16,7.43249751]
[1738294456461,7.43249751,235.23,235.16,11.68509751]
[1738294456662,0.03230833,235.22,235.17,0.03019329]
[1738294463177,0.03230833,235.22,235.17,4.28249329]
[1738294463680,0.03230833,235.22,235.17,0.03019329]
[1738294464682,0.03230833,235.22,235.17,4.28249329]
[1738294464878,0.03230833,235.22,235.17,0.03019329]
[1738294466479,7.43249751,235.21,235.17,0.03019329]
[1738294467576,4.2519,235.2,235.17,0.03019329]
[1738294467780,7.43249751,235.21,235.17,4.28259329]
[1738294467973,7.43249751,235.21,235.17,0.03019329]
[1738294468777,7.43249751,235.21,235.17,4.28249329]
[1738294469083,7.43249751,235.21,235.17,0.03019329]
[1738294471183,11.68419751,235.21,235.17,0.03019329]
[1738294471485,7.43249751,235.21,235.17,0.03019329]
[1738294474382,11.68419751,235.21,235.17,0.03019329]
[1738294474883,7.43249751,235.21,235.17,0.03019329]
[1738294483292,0.03230833,235.22,235.17,0.03019329]
[1738294483892,0.03230833,235.22,235.19,4.252]
[1738294484691,0.03230833,235.22,235.21,4.2517]
[1738294485188,0.03230833,235.22,235.18,7.43249751]
[1738294485385,0.03230833,235.22,235.2,4.2518]
[1738294486389,0.03230833,235.22,235.2,7.43249751]
[1738294486593,0.03230833,235.22,235.21,4.2517]
[1738294488702,7.43249751,235.31,235.27,4.2505]
[1738294489001,7.43249751,235.33,235.25,7.43249751]
[1738294489200,7.43249751,235.33,235.28,4.2504]
[1738294489702,7.43249751,235.35,235.28,4.2504]
[1738294489901,0.03221186,235.33,235.29,7.43249751]
[1738294491097,0.03221186,235.33,235.31,7.43249751]
[1738294491402,23.53512697,235.36,235.31,7.43249751]
[1738294491604,0.19215,235.36,235.34,4.2493]
[1738294494602,0.19215,235.36,235.35,4.2491]
[1738294495493,0.19215,235.36,235.33,0.0295177]
[1738294495894,7.43249751,235.35,235.33,0.0295177]
[1738294497804,4.2493,235.34,235.33,0.0295177]
[1738294499797,7.43249751,235.35,235.25,11.68349751]
[1738294500103,4.2495,235.33,235.25,11.68349751]
[1738294501103,0.03108054,235.31,235.27,0.02859113]
[1738294502903,7.43249751,235.3,235.27,0.02859113]
[1738294503506,4.28108054,235.31,235.27,0.02859113]
[1738294504199,0.03108054,235.31,235.27,0.02859113]
[1738294508013,4.28098054,235.31,235.27,0.02859113]
[1738294508408,0.03108054,235.31,235.27,0.02859113]
[1738294508608,4.28108054,235.31,235.27,0.02859113]
[1738294511617,0.03108054,235.31,235.27,0.02859113]
[1738294513116,7.43249751,235.3,235.27,0.02859113]
[1738294514116,4.2503,235.29,235.27,0.02859113]
[1738294514515,7.43249751,235.3,235.27,0.02859113]
[1738294515118,11.68269751,235.3,235.27,0.02859113]
[1738294515418,7.43249751,235.3,235.27,0.02859113]
[1738294516118,4.2503,235.29,235.27,0.02859113]
[1738294517716,0.03108054,235.31,235.27,7.46108864]
[1738294517921,0.03108054,235.31,235.3,4.2501]
[1738294519319,0.03108054,235.31,235.27,7.46108864]
[1738294519813,0.03108054,235.31,235.29,11.68269751]
[1738294520020,0.03108054,235.31,235.29,7.43249751]
[1738294520524,10.15189751,235.45,235.3,1.422]
[1738294520719,10.15189751,235.45,235.37,7.43249751]
[1738294521719,0.02884247,235.43,235.39,0.02937873]
[1738294522720,0.02884247,235.43,235.39,7.46187624]
[1738294524319,0.02884247,235.43,235.41,7.43249751]
[1738294525214,0.02884247,235.43,235.41,11.68039751]
[1738294527022,0.02884247,235.43,235.41,7.43249751]
[1738294530520,0.02884247,235.43,235.39,7.46187624]
[1738294530922,0.02884247,235.43,235.39,0.02937873]
[1738294531123,7.46133998,235.43,235.39,0.02937873]
[1738294531622,7.43249751,235.41,235.27,7.43249751]
[1738294531824,7.43249751,235.36,235.27,7.43249751]
[1738294532727,0.02710952,235.34,235.29,0.02940636]
[1738294533128,0.02710952,235.34,235.29,7.46190387]
[1738294535330,7.45960703,235.34,235.29,0.02940636]
[1738294535730,4.2495,235.33,235.29,0.02940636]
[1738294536329,0.02710952,235.34,235.29,7.46190387]
[1738294539826,0.02710952,235.34,235.33,7.43249751]
[1738294541726,0.02710952,235.34,235.33,11.68199751]
[1738294543531,4.2475,235.45,235.38,4.2486]
[1738294543836,7.43249751,235.46,235.39,7.43249751]
[1738294544633,0.03228749,235.45,235.4,0.03212057]
[1738294546333,7.43249751,235.44,235.4,0.03212057]
[1738294547936,11.67999751,235.44,235.4,0.03212057]
[1738294548138,7.43249751,235.44,235.4,0.03212057]
[1738294548936,0.03228749,235.45,235.4,0.03212057]
[1738294550636,4.27968749,235.45,235.4,0.03212057]
[1738294551940,7.43249751,235.42,235.4,0.03212057]
[1738294552139,7.43249751,235.44,235.4,0.03212057]
[1738294554137,4.2477,235.43,235.4,0.03212057]
[1738294555642,0.03228749,235.45,235.4,0.03212057]
[1738294556341,4.2475,235.44,235.4,0.03212057]
[1738294556944,0.03228749,235.45,235.4,0.03212057]
[1738294557442,0.03228749,235.45,235.41,7.43249751]
[1738294558143,0.03228749,235.45,235.4,0.03212057]
[1738294559043,4.27968749,235.45,235.4,0.03212057]
[1738294559842,0.03228749,235.45,235.41,7.43249751]
[1738294563140,0.03228749,235.45,235.43,7.43249751]
[1738294566748,0.03228749,235.45,235.44,4.2475]
[1738294567246,0.03228749,235.45,235.43,7.43249751]
[1738294567247,0.03228749,235.45,235.41,10.12189751]
[1738294567547,7.464785,235.45,235.4,0.03212057]
[1738294567748,7.43249751,235.43,235.4,0.03212057]